[Event "SS Manhem Chess Week 2022: IM Tournament"]
[Site "Schackcentrum, Vegagatan 20, Gothenburg, Sweden"]
[Date "2022.08.07"]
[Round "2.5"]
[White "Ingebretsen, Jens E"]
[Black "Ernst, Thomas"]
[Result "1-0"]
[TimeControl "90 minutes for 40 moves + 30 minutes for the rest of the game + 30 seconds per move from move one."]
[WhiteTitle "FM"]
[BlackTitle "GM"]
[WhiteFideId "1522965"]
[BlackFideId "1700065"]
[WhiteElo "2325"]
[BlackElo "2323"]

1. d4 {[%clk 01:30:36]} {[%emt 00:00:23]} Nf6 {[%clk 01:30:43]} {[%emt
00:00:17]} 2. c4 {[%clk 01:30:55]} {[%emt 00:00:11]} g6 {[%clk 01:31:03]}
{[%emt 00:00:10]} 3. Nc3 {[%clk 01:31:20]} {[%emt 00:00:06]} d5 {[%clk
01:31:21]} {[%emt 00:00:12]} 4. cxd5 {[%clk 01:31:43]} {[%emt 00:00:07]} Nxd5
{[%clk 01:31:44]} {[%emt 00:00:07]} 5. Bd2 {[%clk 01:32:09]} {[%emt 00:00:04]}
Nb6 {[%clk 01:31:51]} {[%emt 00:00:23]} 6. e3 {[%clk 01:30:44]} {[%emt
00:01:55]} Bg7 {[%clk 01:31:11]} {[%emt 00:01:10]} 7. h4 {[%clk 01:30:07]}
{[%emt 00:01:07]} h5 {[%clk 01:21:23]} {[%emt 00:10:19]} 8. Nf3 {[%clk
01:28:23]} {[%emt 00:02:15]} O-O {[%clk 01:21:26]} {[%emt 00:00:26]} 9. Ng5
{[%clk 01:24:38]} {[%emt 00:04:15]} e5 {[%clk 01:15:15]} {[%emt 00:06:40]} 10.
dxe5 {[%clk 01:24:03]} {[%emt 00:01:05]} Bxe5 {[%clk 01:15:35]} {[%emt
00:00:11]} 11. Be2 {[%clk 01:17:41]} {[%emt 00:06:52]} N8d7 {[%clk 01:14:59]}
{[%emt 00:01:04]} 12. Qc2 {[%clk 01:14:03]} {[%emt 00:04:09]} Nf6 {[%clk
01:12:29]} {[%emt 00:02:59]} 13. e4 {[%clk 01:00:34]} {[%emt 00:14:01]} Qe7
{[%clk 01:11:55]} {[%emt 00:01:03]} 14. O-O-O {[%clk 00:58:31]} {[%emt
00:02:34]} Bd7 {[%clk 01:09:22]} {[%emt 00:03:02]} 15. f4 {[%clk 00:56:57]}
{[%emt 00:02:05]} Bd4 {[%clk 01:09:40]} {[%emt 00:00:12]} 16. e5 {[%clk
00:41:42]} {[%emt 00:15:46]} Ng4 {[%clk 01:07:57]} {[%emt 00:02:12]} 17. Nce4
{[%clk 00:39:39]} {[%emt 00:02:32]} Bf5 {[%clk 01:06:23]} {[%emt 00:02:01]} 18.
Bxg4 {[%clk 00:39:04]} {[%emt 00:01:08]} hxg4 {[%clk 01:06:31]} {[%emt
00:00:22]} 19. h5 {[%clk 00:37:01]} {[%emt 00:02:34]} Kg7 {[%clk 01:06:20]}
{[%emt 00:00:39]} 20. g3 {[%clk 00:24:48]} {[%emt 00:12:44]} f6 {[%clk
01:05:34]} {[%emt 00:01:15]} 21. hxg6 {[%clk 00:21:42]} {[%emt 00:03:38]} Bxg6
{[%clk 01:05:21]} {[%emt 00:00:42]} 22. exf6+ {[%clk 00:15:43]} {[%emt
00:06:29]} Rxf6 {[%clk 01:05:35]} {[%emt 00:00:15]} 23. Bc3 {[%clk 00:14:35]}
{[%emt 00:01:39]} Bxc3 {[%clk 01:05:17]} {[%emt 00:00:48]} 24. Qxc3 {[%clk
00:13:53]} {[%emt 00:01:12]} Bxe4 {[%clk 01:04:17]} {[%emt 00:01:28]} 25. Rhe1
{[%clk 00:14:14]} {[%emt 00:00:11]} Kf8 {[%clk 00:53:55]} {[%emt 00:10:51]} 26.
Nh7+ {[%clk 00:13:18]} {[%emt 00:01:27]} Qxh7 {[%clk 00:52:15]} {[%emt
00:02:10]} 27. Qxf6+ {[%clk 00:13:42]} {[%emt 00:00:06]} Kg8 {[%clk 00:52:34]}
{[%emt 00:00:12]} 28. Qe6+ {[%clk 00:14:03]} {[%emt 00:00:09]} 1-0

[Event "SS Manhem Chess Week 2022: IM Tournament"]
[Site "Schackcentrum, Vegagatan 20, Gothenburg, Sweden"]
[Date "2022.08.07"]
[Round "3.1"]
[White "Pantzar, Milton"]
[Black "Jacobsen, Mikkel Manosri"]
[Result "1/2-1/2"]
[TimeControl "90 minutes for 40 moves + 30 minutes for the rest of the game + 30 seconds per move from move one."]
[WhiteTitle "IM"]
[BlackTitle "FM"]
[WhiteFideId "1721003"]
[BlackFideId "1444514"]
[WhiteElo "2447"]
[BlackElo "2320"]

1. c4 {[%clk 01:30:50]} {[%emt 00:00:10]} e6 {[%clk 01:30:44]} {[%emt
00:00:16]} 2. Nf3 {[%clk 01:30:09]} {[%emt 00:01:11]} d5 {[%clk 01:31:07]}
{[%emt 00:00:06]} 3. e3 {[%clk 01:30:17]} {[%emt 00:00:22]} Nf6 {[%clk
01:30:58]} {[%emt 00:00:39]} 4. b3 {[%clk 01:29:40]} {[%emt 00:01:07]} c5
{[%clk 01:30:23]} {[%emt 00:01:04]} 5. Bb2 {[%clk 01:25:07]} {[%emt 00:05:04]}
Nc6 {[%clk 01:29:38]} {[%emt 00:01:14]} 6. cxd5 {[%clk 01:25:01]} {[%emt
00:00:37]} exd5 {[%clk 01:29:44]} {[%emt 00:00:24]} 7. Bb5 {[%clk 01:25:12]}
{[%emt 00:00:20]} Bd6 {[%clk 01:27:43]} {[%emt 00:02:30]} 8. O-O {[%clk
01:21:54]} {[%emt 00:03:49]} O-O {[%clk 01:26:59]} {[%emt 00:01:15]} 9. d4
{[%clk 01:20:21]} {[%emt 00:02:02]} cxd4 {[%clk 01:21:57]} {[%emt 00:05:31]} 10.
Nxd4 {[%clk 01:18:23]} {[%emt 00:02:29]} Bd7 {[%clk 01:18:43]} {[%emt
00:03:44]} 11. Be2 {[%clk 01:16:27]} {[%emt 00:02:26]} Re8 {[%clk 01:18:05]}
{[%emt 00:01:07]} 12. Nf3 {[%clk 01:13:36]} {[%emt 00:03:22]} Bg4 {[%clk
01:13:03]} {[%emt 00:05:31]} 13. Nc3 {[%clk 01:11:00]} {[%emt 00:03:07]} Rc8
{[%clk 01:05:16]} {[%emt 00:08:16]} 14. h3 {[%clk 01:05:43]} {[%emt 00:05:46]}
Bxf3 {[%clk 01:02:19]} {[%emt 00:03:27]} 15. Bxf3 {[%clk 01:05:55]} {[%emt
00:00:19]} Be5 {[%clk 01:02:33]} {[%emt 00:00:15]} 16. Rc1 {[%clk 00:55:39]}
{[%emt 00:10:47]} d4 {[%clk 00:56:03]} {[%emt 00:07:00]} 17. exd4 {[%clk
00:53:19]} {[%emt 00:02:49]} Nxd4 {[%clk 00:56:23]} {[%emt 00:00:10]} 18. Bxb7
{[%clk 00:42:48]} {[%emt 00:11:02]} Rxc3 {[%clk 00:53:47]} {[%emt 00:03:05]} 19.
Bxc3 {[%clk 00:36:59]} {[%emt 00:06:21]} Ne2+ {[%clk 00:53:51]} {[%emt
00:00:25]} 20. Qxe2 {[%clk 00:32:41]} {[%emt 00:04:48]} Bh2+ {[%clk 00:54:13]}
{[%emt 00:00:08]} 21. Kh1 {[%clk 00:12:23]} {[%emt 00:20:48]} Rxe2 {[%clk
00:54:03]} {[%emt 00:00:39]} 22. Bxf6 {[%clk 00:12:48]} {[%emt 00:00:05]} gxf6
{[%clk 00:49:16]} {[%emt 00:05:18]} 23. Rc8 {[%clk 00:13:06]} {[%emt 00:00:12]}
Qxc8 {[%clk 00:48:58]} {[%emt 00:00:48]} 24. Bxc8 {[%clk 00:13:30]} {[%emt
00:00:06]} Be5 {[%clk 00:48:51]} {[%emt 00:00:37]} 25. f4 {[%clk 00:09:29]}
{[%emt 00:04:31]} Bc7 {[%clk 00:47:29]} {[%emt 00:01:51]} 26. a4 {[%clk
00:02:51]} {[%emt 00:07:08]} Re3 {[%clk 00:47:31]} {[%emt 00:00:27]} 27. Rf3
{[%clk 00:02:50]} {[%emt 00:00:32]} Rxf3 {[%clk 00:47:55]} {[%emt 00:00:06]} 28.
gxf3 {[%clk 00:03:16]} {[%emt 00:00:04]} a5 {[%clk 00:46:55]} {[%emt 00:01:30]}
29. f5 {[%clk 00:03:38]} {[%emt 00:00:08]} Bd6 {[%clk 00:47:19]} {[%emt
00:00:06]} 30. Kg2 {[%clk 00:03:44]} {[%emt 00:00:24]} Bb4 {[%clk 00:47:32]}
{[%emt 00:00:17]} 31. Ba6 {[%clk 00:03:53]} {[%emt 00:00:21]} Bc3 {[%clk
00:47:56]} {[%emt 00:00:06]} 32. Bb5 {[%clk 00:04:19]} {[%emt 00:00:05]} Bb4
{[%clk 00:48:22]} {[%emt 00:00:03]} 33. Bc4 {[%clk 00:04:46]} {[%emt 00:00:03]}
Bc3 {[%clk 00:48:48]} {[%emt 00:00:03]} 34. Bd3 {[%clk 00:05:13]} {[%emt
00:00:04]} Bd2 {[%clk 00:49:14]} {[%emt 00:00:04]} 35. Bc2 {[%clk 00:05:39]}
{[%emt 00:00:05]} Bc3 {[%clk 00:49:40]} {[%emt 00:00:04]} 36. Bb1 {[%clk
00:06:05]} {[%emt 00:00:04]} Bb4 {[%clk 00:50:08]} {[%emt 00:00:02]} 37. Bc2
{[%clk 00:06:30]} {[%emt 00:00:05]} Bc3 {[%clk 00:50:29]} {[%emt 00:00:09]} 38.
Bd3 {[%clk 00:06:56]} {[%emt 00:00:04]} Bb4 {[%clk 00:50:55]} {[%emt 00:00:05]}
39. Bc4 {[%clk 00:07:22]} {[%emt 00:00:03]} Bc3 {[%clk 00:51:21]} {[%emt
00:00:04]} 40. Bb5 {[%clk 00:07:49]} {[%emt 00:00:03]} Bb4 {[%clk 00:51:48]}
{[%emt 00:00:03]} 1/2-1/2

[Event "SS Manhem Chess Week 2022: IM Tournament"]
[Site "Schackcentrum, Vegagatan 20, Gothenburg, Sweden"]
[Date "2022.08.07"]
[Round "3.2"]
[White "Johnson, Daniel"]
[Black "Mitusov, Semen"]
[Result "1/2-1/2"]
[TimeControl "90 minutes for 40 moves + 30 minutes for the rest of the game + 30 seconds per move from move one."]
[BlackTitle "FM"]
[WhiteFideId "1721283"]
[BlackFideId "14151049"]
[WhiteElo "2207"]
[BlackElo "2415"]

1. d4 {[%clk 01:28:48]} {[%emt 00:02:10]} d5 {[%clk 01:29:58]} {[%emt
00:01:04]} 2. Nc3 {[%clk 01:28:31]} {[%emt 00:00:47]} Nf6 {[%clk 01:29:27]}
{[%emt 00:01:01]} 3. Bf4 {[%clk 01:28:54]} {[%emt 00:00:06]} c5 {[%clk
01:27:40]} {[%emt 00:02:18]} 4. e4 {[%clk 01:28:39]} {[%emt 00:00:45]} Nxe4
{[%clk 01:17:28]} {[%emt 00:10:43]} 5. Nxe4 {[%clk 01:28:27]} {[%emt 00:00:42]}
dxe4 {[%clk 01:17:51]} {[%emt 00:00:06]} 6. dxc5 {[%clk 01:28:40]} {[%emt
00:00:17]} Qa5+ {[%clk 01:14:51]} {[%emt 00:03:30]} 7. c3 {[%clk 01:28:48]}
{[%emt 00:00:22]} Qxc5 {[%clk 01:14:05]} {[%emt 00:01:16]} 8. Qa4+ {[%clk
01:28:48]} {[%emt 00:00:29]} Nc6 {[%clk 01:11:43]} {[%emt 00:02:53]} 9. Qxe4
{[%clk 01:28:48]} {[%emt 00:00:30]} Bf5 {[%clk 01:09:52]} {[%emt 00:02:21]} 10.
Qa4 {[%clk 01:27:38]} {[%emt 00:01:38]} Rd8 {[%clk 01:03:17]} {[%emt 00:07:07]}
11. Nf3 {[%clk 01:21:40]} {[%emt 00:06:27]} e6 {[%clk 00:56:53]} {[%emt
00:06:55]} 12. Be2 {[%clk 01:05:11]} {[%emt 00:16:58]} Be7 {[%clk 00:56:06]}
{[%emt 00:01:18]} 13. O-O {[%clk 01:04:56]} {[%emt 00:00:44]} O-O {[%clk
00:56:20]} {[%emt 00:00:17]} 14. Rfd1 {[%clk 01:03:21]} {[%emt 00:02:05]} Qb6
{[%clk 00:56:01]} {[%emt 00:00:50]} 15. Qb3 {[%clk 00:52:32]} {[%emt 00:11:18]}
Bc5 {[%clk 00:53:51]} {[%emt 00:02:40]} 16. Qxb6 {[%clk 00:48:22]} {[%emt
00:04:41]} Bxb6 {[%clk 00:54:16]} {[%emt 00:00:05]} 17. Ne5 {[%clk 00:44:52]}
{[%emt 00:03:59]} Nxe5 {[%clk 00:51:04]} {[%emt 00:03:42]} 18. Bxe5 {[%clk
00:42:16]} {[%emt 00:03:06]} Bc2 {[%clk 00:51:25]} {[%emt 00:00:10]} 19. Re1
{[%clk 00:18:50]} {[%emt 00:23:55]} Rd5 {[%clk 00:45:55]} {[%emt 00:06:00]} 20.
Bf3 {[%clk 00:15:31]} {[%emt 00:03:49]} Rd2 {[%clk 00:44:36]} {[%emt 00:01:48]}
21. Re2 {[%clk 00:13:58]} {[%emt 00:02:03]} Rd1+ {[%clk 00:39:24]} {[%emt
00:05:43]} 22. Re1 {[%clk 00:10:29]} {[%emt 00:03:59]} Rd2 {[%clk 00:39:48]}
{[%emt 00:00:06]} 23. Re2 {[%clk 00:10:54]} {[%emt 00:00:06]} Rfd8 {[%clk
00:36:04]} {[%emt 00:04:13]} 24. Bd4 {[%clk 00:04:17]} {[%emt 00:07:06]} Rxe2
{[%clk 00:24:53]} {[%emt 00:11:41]} 25. Bxb6 {[%clk 00:04:25]} {[%emt
00:00:22]} Rd6 {[%clk 00:23:38]} {[%emt 00:01:44]} 26. Bxe2 {[%clk 00:02:57]}
{[%emt 00:01:58]} Rxb6 {[%clk 00:23:59]} {[%emt 00:00:10]} 27. b3 {[%clk
00:02:54]} {[%emt 00:00:33]} Rd6 {[%clk 00:24:00]} {[%emt 00:00:29]} 28. Kf1
{[%clk 00:02:34]} {[%emt 00:00:49]} b6 {[%clk 00:22:04]} {[%emt 00:02:27]} 29.
Rc1 {[%clk 00:02:20]} {[%emt 00:00:44]} Be4 {[%clk 00:21:53]} {[%emt 00:00:41]}
30. f3 {[%clk 00:01:06]} {[%emt 00:01:44]} Bb7 {[%clk 00:21:23]} {[%emt
00:01:00]} 31. Rd1 {[%clk 00:01:07]} {[%emt 00:00:28]} Rxd1+ {[%clk 00:21:23]}
{[%emt 00:00:31]} 32. Bxd1 {[%clk 00:01:32]} {[%emt 00:00:05]} Kf8 {[%clk
00:21:33]} {[%emt 00:00:21]} 33. Ke2 {[%clk 00:00:51]} {[%emt 00:01:10]} Ke7
{[%clk 00:21:55]} {[%emt 00:00:08]} 34. Ke3 {[%clk 00:01:03]} {[%emt 00:00:18]}
e5 {[%clk 00:21:17]} {[%emt 00:01:09]} 35. Bc2 {[%clk 00:01:03]} {[%emt
00:00:30]} Ke6 {[%clk 00:21:34]} {[%emt 00:00:12]} 36. g4 {[%clk 00:00:34]}
{[%emt 00:00:59]} h6 {[%clk 00:20:44]} {[%emt 00:01:21]} 37. c4 {[%clk
00:00:33]} {[%emt 00:00:31]} g6 {[%clk 00:20:19]} {[%emt 00:00:55]} 38. b4
{[%clk 00:00:32]} {[%emt 00:00:31]} f5 {[%clk 00:20:24]} {[%emt 00:00:24]} 39.
gxf5+ {[%clk 00:00:39]} {[%emt 00:00:23]} gxf5 {[%clk 00:20:49]} {[%emt
00:00:06]} 40. f4 {[%clk 00:00:48]} {[%emt 00:00:21]} Bc6 {[%clk 00:19:22]}
{[%emt 00:01:58]} 1/2-1/2

[Event "SS Manhem Chess Week 2022: IM Tournament"]
[Site "Schackcentrum, Vegagatan 20, Gothenburg, Sweden"]
[Date "2022.08.07"]
[Round "3.3"]
[White "Heimisson, Hilmir Freyr"]
[Black "Rydstrom, Tom"]
[Result "1-0"]
[TimeControl "90 minutes for 40 moves + 30 minutes for the rest of the game + 30 seconds per move from move one."]
[WhiteTitle "IM"]
[BlackTitle "FM"]
[WhiteFideId "2309998"]
[BlackFideId "1714830"]
[WhiteElo "2323"]
[BlackElo "2304"]

1. d4 {[%clk 01:30:55]} {[%emt 00:00:03]} c5 {[%clk 01:30:01]} {[%emt
00:01:00]} 2. d5 {[%clk 01:31:14]} {[%emt 00:00:11]} e5 {[%clk 01:30:27]}
{[%emt 00:00:04]} 3. c4 {[%clk 01:30:39]} {[%emt 00:01:04]} d6 {[%clk
01:30:45]} {[%emt 00:00:14]} 4. Nc3 {[%clk 01:30:05]} {[%emt 00:01:03]} Be7
{[%clk 01:28:30]} {[%emt 00:02:45]} 5. e4 {[%clk 01:29:13]} {[%emt 00:01:21]}
Bg5 {[%clk 01:27:42]} {[%emt 00:01:19]} 6. Bd3 {[%clk 01:25:58]} {[%emt
00:03:44]} Bxc1 {[%clk 01:26:22]} {[%emt 00:01:50]} 7. Rxc1 {[%clk 01:26:17]}
{[%emt 00:00:11]} Ne7 {[%clk 01:25:51]} {[%emt 00:01:01]} 8. Nge2 {[%clk
01:22:38]} {[%emt 00:04:08]} O-O {[%clk 01:24:47]} {[%emt 00:01:35]} 9. O-O
{[%clk 01:21:23]} {[%emt 00:01:45]} Ng6 {[%clk 01:20:43]} {[%emt 00:04:35]} 10.
Qd2 {[%clk 01:16:56]} {[%emt 00:04:56]} Na6 {[%clk 01:18:18]} {[%emt 00:02:55]}
11. a3 {[%clk 01:13:47]} {[%emt 00:03:38]} Nc7 {[%clk 01:18:12]} {[%emt
00:00:37]} 12. b4 {[%clk 01:12:45]} {[%emt 00:01:31]} b6 {[%clk 01:18:09]}
{[%emt 00:00:34]} 13. Rb1 {[%clk 01:09:14]} {[%emt 00:04:00]} Qf6 {[%clk
01:08:26]} {[%emt 00:10:14]} 14. Ng3 {[%clk 01:03:01]} {[%emt 00:06:43]} Nf4
{[%clk 01:05:21]} {[%emt 00:03:35]} 15. Nce2 {[%clk 01:01:46]} {[%emt
00:01:45]} g6 {[%clk 00:59:38]} {[%emt 00:06:13]} 16. f3 {[%clk 00:56:48]}
{[%emt 00:05:27]} g5 {[%clk 00:43:17]} {[%emt 00:16:51]} 17. Rb2 {[%clk
00:50:26]} {[%emt 00:06:52]} Kh8 {[%clk 00:41:59]} {[%emt 00:01:48]} 18. Nc3
{[%clk 00:37:15]} {[%emt 00:13:41]} Rg8 {[%clk 00:31:48]} {[%emt 00:10:41]} 19.
Nd1 {[%clk 00:34:59]} {[%emt 00:02:46]} h5 {[%clk 00:19:51]} {[%emt 00:12:27]}
20. Ne3 {[%clk 00:34:48]} {[%emt 00:00:40]} Ne8 {[%clk 00:20:20]} {[%emt
00:00:03]} 21. Rb3 {[%clk 00:27:41]} {[%emt 00:07:36]} Bd7 {[%clk 00:18:08]}
{[%emt 00:02:42]} 22. Ngf5 {[%clk 00:26:35]} {[%emt 00:01:35]} Ng7 {[%clk
00:14:56]} {[%emt 00:03:43]} 23. g3 {[%clk 00:24:54]} {[%emt 00:02:11]} Ng6
{[%clk 00:14:14]} {[%emt 00:01:12]} 24. Qg2 {[%clk 00:22:43]} {[%emt 00:02:41]}
Nxf5 {[%clk 00:14:20]} {[%emt 00:00:24]} 25. exf5 {[%clk 00:21:17]} {[%emt
00:01:56]} Ne7 {[%clk 00:10:01]} {[%emt 00:04:50]} 26. Qh3 {[%clk 00:20:17]}
{[%emt 00:01:30]} Rg7 {[%clk 00:09:58]} {[%emt 00:00:34]} 27. Ng4 {[%clk
00:14:40]} {[%emt 00:06:05]} 1-0

[Event "SS Manhem Chess Week 2022: IM Tournament"]
[Site "Schackcentrum, Vegagatan 20, Gothenburg, Sweden"]
[Date "2022.08.07"]
[Round "3.4"]
[White "Kucuksari, Kaan"]
[Black "Ingebretsen, Jens E"]
[Result "1-0"]
[TimeControl "90 minutes for 40 moves + 30 minutes for the rest of the game + 30 seconds per move from move one."]
[WhiteTitle "FM"]
[BlackTitle "FM"]
[WhiteFideId "6380166"]
[BlackFideId "1522965"]
[WhiteElo "2398"]
[BlackElo "2325"]

1. d4 {[%clk 01:30:59]} d5 {[%clk 01:30:35]} {[%emt 00:00:25]} 2. Nf3 {[%clk
01:31:21]} {[%emt 00:00:07]} Nf6 {[%clk 01:30:59]} {[%emt 00:00:05]} 3. c4
{[%clk 01:31:44]} {[%emt 00:00:08]} c6 {[%clk 01:31:25]} {[%emt 00:00:04]} 4.
Qc2 {[%clk 01:32:06]} {[%emt 00:00:07]} dxc4 {[%clk 01:31:49]} {[%emt
00:00:06]} 5. Qxc4 {[%clk 01:32:30]} {[%emt 00:00:06]} Bf5 {[%clk 01:32:12]}
{[%emt 00:00:08]} 6. g3 {[%clk 01:32:55]} {[%emt 00:00:08]} e6 {[%clk
01:32:34]} {[%emt 00:00:05]} 7. Bg2 {[%clk 01:33:20]} {[%emt 00:00:04]} Nbd7
{[%clk 01:33:00]} {[%emt 00:00:05]} 8. O-O {[%clk 01:33:41]} {[%emt 00:00:09]}
Be7 {[%clk 01:33:27]} {[%emt 00:00:02]} 9. e3 {[%clk 01:34:03]} {[%emt
00:00:09]} O-O {[%clk 01:33:43]} {[%emt 00:00:13]} 10. Rd1 {[%clk 01:34:28]}
{[%emt 00:00:05]} Rc8 {[%clk 01:32:48]} {[%emt 00:01:25]} 11. Qe2 {[%clk
01:34:52]} {[%emt 00:00:07]} c5 {[%clk 01:26:35]} {[%emt 00:06:43]} 12. Nc3
{[%clk 01:34:45]} {[%emt 00:00:37]} Ne4 {[%clk 01:13:03]} {[%emt 00:14:02]} 13.
Bd2 {[%clk 01:31:00]} {[%emt 00:04:15]} Qb6 {[%clk 00:57:16]} {[%emt 00:16:17]}
14. Ne5 {[%clk 01:23:47]} {[%emt 00:07:43]} Nxe5 {[%clk 00:53:12]} {[%emt
00:04:34]} 15. dxe5 {[%clk 01:21:44]} {[%emt 00:02:33]} Nxd2 {[%clk 00:44:13]}
{[%emt 00:09:29]} 16. Rxd2 {[%clk 01:22:07]} {[%emt 00:00:07]} c4 {[%clk
00:44:00]} {[%emt 00:00:43]} 17. Qf3 {[%emt 00:11:44]} Qa5 {[%clk 00:27:56]}
{[%emt 00:16:32]} 18. Rd7 {[%clk 01:02:27]} {[%emt 00:08:58]} Bb4 {[%clk
00:22:17]} {[%emt 00:06:09]} 19. e4 {[%clk 01:00:53]} {[%emt 00:02:04]} Bg6
{[%clk 00:22:08]} {[%emt 00:00:39]} 20. a3 {[%clk 00:57:02]} {[%emt 00:04:21]}
b5 {[%clk 00:17:15]} {[%emt 00:05:23]} 21. h4 {[%clk 00:48:15]} {[%emt
00:09:17]} f5 {[%clk 00:14:51]} {[%emt 00:02:53]} 22. exf5 {[%clk 00:26:45]}
{[%emt 00:22:00]} Bxf5 {[%clk 00:15:09]} {[%emt 00:00:12]} 23. Qe3 {[%clk
00:23:48]} {[%emt 00:03:27]} Bc5 {[%clk 00:12:31]} {[%emt 00:03:09]} 24. Qg5
{[%clk 00:21:31]} {[%emt 00:02:47]} Bg6 {[%clk 00:12:47]} {[%emt 00:00:13]} 25.
Ne4 {[%clk 00:19:21]} {[%emt 00:02:40]} Qb6 {[%clk 00:11:55]} {[%emt 00:01:23]}
26. Rf1 {[%clk 00:19:07]} {[%emt 00:00:44]} Rf5 {[%clk 00:11:20]} {[%emt
00:01:04]} 27. Qd2 {[%clk 00:16:34]} {[%emt 00:03:03]} Rxe5 {[%clk 00:08:25]}
{[%emt 00:03:25]} 28. Qc3 {[%clk 00:13:15]} {[%emt 00:03:50]} Qb8 {[%clk
00:04:53]} {[%emt 00:04:02]} 29. Nxc5 {[%clk 00:09:49]} {[%emt 00:03:56]} Rcxc5
{[%clk 00:04:42]} {[%emt 00:00:40]} 30. f4 {[%clk 00:08:19]} {[%emt 00:02:00]}
Qc8 {[%clk 00:01:49]} {[%emt 00:03:24]} 31. Rxa7 {[%clk 00:02:50]} {[%emt
00:05:59]} Rcd5 {[%clk 00:02:18]} {[%emt 00:00:01]} 32. Bxd5 {[%clk 00:01:27]}
{[%emt 00:01:53]} Qc5+ {[%clk 00:01:56]} {[%emt 00:00:51]} 33. Rf2 {[%clk
00:01:45]} {[%emt 00:00:12]} Qxa7 {[%clk 00:02:07]} {[%emt 00:00:20]} 34. Qxe5
{[%clk 00:01:03]} {[%emt 00:01:12]} exd5 {[%clk 00:02:32]} {[%emt 00:00:05]} 35.
Qxd5+ {[%clk 00:01:25]} {[%emt 00:00:07]} Kf8 {[%clk 00:03:00]} {[%emt
00:00:02]} 36. f5 {[%clk 00:01:10]} {[%emt 00:00:45]} Be8 {[%clk 00:02:45]}
{[%emt 00:00:46]} 37. Qd6+ {[%clk 00:01:12]} {[%emt 00:00:27]} Kg8 {[%clk
00:02:34]} {[%emt 00:00:40]} 38. Qe6+ {[%clk 00:01:34]} {[%emt 00:00:09]} Kf8
{[%clk 00:02:40]} {[%emt 00:00:23]} 39. f6 {[%clk 00:01:21]} {[%emt 00:00:44]}
g6 {[%clk 00:02:00]} {[%emt 00:01:11]} 40. Qd6+ {[%clk 00:01:34]} {[%emt
00:00:16]} Kf7 {[%clk 00:01:35]} {[%emt 00:00:56]} 41. Qd5+ {[%clk 00:01:41]}
{[%emt 00:00:20]} Kf8 {[%clk 00:01:44]} {[%emt 00:00:23]} 42. Qd2 {[%clk
00:00:39]} {[%emt 00:01:30]} Kf7 {[%clk 00:01:12]} {[%emt 00:01:04]} 43. Kh2
{[%clk 00:27:33]} {[%emt 00:03:35]} Qc5 {[%clk 00:31:40]} {[%emt 00:00:03]} 44.
Re2 {[%clk 00:27:22]} {[%emt 00:00:40]} Bc6 {[%clk 00:30:35]} {[%emt 00:01:36]}
45. Qf4 {[%clk 00:27:00]} {[%emt 00:00:50]} 1-0